bitfinex/quotes_ETHUSD_20250605
["timestamp","ask_amount","ask_price","bid_price","bid_amount"]
[1749138187948,0.7933,2595.7,2595.5,3.85268594]
[1749138188784,0.7933,2595.7,2595.6,3.85267375]
[1749138189036,0.79161007,2595.7,2595.6,3.85267375]
[1749138189751,0.02,2595.9,2595.5,3.85276654]
[1749138189959,0.02,2595.9,2595.4,8.082]
[1749138190157,0.02,2595.9,2595.2,8.315]
[1749138190158,9.62421956,2595.8,2595.3,3.85299457]
[1749138190468,0.96442196,2595.7,2595.3,3.85303695]
[1749138190601,0.96442196,2595.7,2595.2,8.315]
[1749138190816,9.62421956,2595.5,2595.3,1.693]
[1749138191132,13.47715334,2595.5,2595.4,6.388]
[1749138191337,13.84560059,2595.5,2595.4,6.388]
[1749138191541,3.85299059,2595.4,2595.2,8.315]
[1749138191848,3.85299059,2595.4,2595.3,8.081]
[1749138192030,1.14713595,2595.4,2595.3,8.081]
[1749138192221,5.00010659,2595.4,2595.3,8.081]
[1749138192625,5.00010659,2595.4,2595.3,1.693]
[1749138192626,21.55010659,2595.4,2595.3,1.693]
[1749138192826,23.1991666,2595.4,2595.3,8.078]
[1749138193065,23.1991666,2595.4,2595.3,1.69]
[1749138193367,19.34619596,2595.4,2595.3,1.69]
[1749138193665,18.79619596,2595.4,2595.3,1.69]
[1749138196854,18.79608838,2595.4,2595.3,1.69]
[1749138197381,1.14702837,2595.4,2595.3,1.69]
[1749138197684,0.7787,2595.4,2595.3,1.69]
[1749138200928,7.78,2595.7,2595.3,5.54311909]
[1749138200929,0.759,2595.6,2595.3,5.54311909]
[1749138201560,0.759,2595.6,2595.3,1.69]
[1749138202144,0.36871899,2595.5,2595.3,1.69]
[1749138202459,0.759,2595.6,2595.3,1.69]
[1749138202664,0.36880253,2595.5,2595.3,5.54311169]
[1749138202865,0.759,2595.6,2595.3,5.54311169]
[1749138203362,0.759,2595.6,2595.4,3.85295752]
[1749138203363,5.38822689,2595.6,2595.4,3.85295752]
[1749138203568,7.78,2595.7,2595.5,6.387]
[1749138203924,5.45942689,2595.8,2595.5,10.23973891]
[1749138204605,5.45942689,2595.8,2595.5,6.387]
[1749138205063,0.8302,2595.8,2595.5,10.23981656]
[1749138205425,0.8302,2595.8,2595.5,6.387]
[1749138205853,0.8302,2595.8,2595.5,10.23978001]
[1749138206627,0.8302,2595.8,2595.5,10.23968304]
[1749138207331,0.8302,2595.8,2595.5,6.387]
[1749138207533,0.8302,2595.8,2595.6,3.85265022]
[1749138207746,0.8302,2595.8,2595.5,10.23975536]
[1749138208451,0.8302,2595.8,2595.5,6.387]
[1749138208452,4.62922689,2595.7,2595.5,6.387]
[1749138208645,5.17716958,2595.7,2595.5,6.387]
[1749138210267,5.17716958,2595.7,2595.6,6.386]
[1749138210571,5.54585388,2595.7,2595.6,6.386]
[1749138210781,5.17716958,2595.7,2595.6,6.386]
[1749138211154,5.54584949,2595.7,2595.6,6.386]
[1749138211887,5.17716958,2595.7,2595.6,6.386]
[1749138212387,4.62922689,2595.7,2595.6,6.386]
[1749138212760,4.62922689,2595.7,2595.3,5.54299904]
[1749138212961,4.62922689,2595.7,2595.4,6.385]
[1749138213552,4.62922689,2595.7,2595.4,10.23789575]
[1749138214695,4.62922689,2595.7,2595.4,6.385]
[1749138215152,4.62922689,2595.7,2595.5,8.317]
[1749138215352,5.17716958,2595.7,2595.5,8.317]
[1749138215976,5.17716958,2595.7,2595.6,6.385]
[1749138218285,5.54584174,2595.7,2595.6,6.385]
[1749138218784,5.17716958,2595.7,2595.6,6.385]
[1749138219896,0.54794269,2595.7,2595.6,6.385]
[1749138220120,4.64922689,2595.9,2595.6,6.385]
[1749138220121,0.02,2595.9,2595.8,3.85237691]
[1749138220259,0.02,2595.9,2595.8,13.85237691]
[1749138220600,0.02,2595.9,2595.8,32.04622391]
[1749138220906,0.02,2595.9,2595.8,52.6754508]
[1749138221270,0.02,2595.9,2595.8,46.37064691]
[1749138221468,0.02,2595.9,2595.8,11.92637691]
[1749138222363,0.02,2595.9,2595.8,11.92337691]
[1749138223079,0.02,2595.9,2595.8,11.92237691]
[1749138223254,0.02,2595.9,2595.8,5.53937691]
[1749138223460,0.02,2595.9,2595.8,11.92237691]
[1749138228101,0.02,2595.9,2595.8,11.17237691]
[1749138233303,0.02,2595.9,2595.8,16.383]
[1749138233709,0.02,2595.9,2595.8,20.23537691]
[1749138234086,0.02,2595.9,2595.8,16.383]
[1749138234284,0.02,2595.9,2595.8,13.85437691]
[1749138234479,0.02,2595.9,2595.8,20.23537691]
[1749138236106,0.02,2595.9,2595.8,8.315]
[1749138236421,0.02,2595.9,2595.8,6.38]
[1749138237012,1.06008679,2595.9,2595.8,6.38]
[1749138239203,0.02,2595.9,2595.8,6.38]
[1749138240275,0.02,2595.9,2595.8,10.23237691]
[1749138243183,0.02,2595.9,2595.8,32.77392891]
[1749138243382,0.02,2595.9,2595.8,28.64982891]
[1749138243789,0.02,2595.9,2595.8,25.72671991]
[1749138244375,0.02,2595.9,2595.8,20.23437691]
[1749138245006,0.02,2595.9,2595.8,46.53230491]
[1749138246015,0.02,2595.9,2595.8,20.23437691]
[1749138246379,0.02,2595.9,2595.8,66.23437691]
[1749138250515,0.02,2595.9,2595.8,35.38852291]
[1749138250714,0.02,2595.9,2595.8,41.18589991]
[1749138250900,0.02,2595.9,2595.8,36.23237691]
[1749138251102,0.02,2595.9,2595.8,13.85437691]
[1749138251315,0.02,2595.9,2595.8,12.16737691]
[1749138251518,0.02,2595.9,2595.8,32.379]
[1749138251685,0.02,2595.9,2595.8,36.23137691]
[1749138252619,0.02,2595.9,2595.8,20.22737691]
[1749138258214,0.7826,2595.9,2595.8,20.22637691]
[1749138258600,0.02,2595.9,2595.8,20.22637691]
[1749138258805,0.02,2595.9,2595.8,9.998]
[1749138259663,0.02,2595.9,2595.8,13.85037691]
[1749138260206,0.02,2595.9,2595.8,20.22637691]
[1749138262537,0.02,2595.9,2595.8,9.998]
[1749138262740,0.02,2595.9,2595.8,16.374]
[1749138262947,0.02,2595.9,2595.8,20.22637691]
[1749138264342,0.02,2595.9,2595.8,54.85205686]
[1749138264905,0.02,2595.9,2595.8,70.85205686]
[1749138265841,0.02,2595.9,2595.8,61.97403891]
[1749138266710,0.02,2595.9,2595.8,66.59971886]
[1749138266911,0.02,2595.9,2595.8,67.14971886]
[1749138269531,0.02,2595.9,2595.8,59.08971886]
[1749138269738,0.02,2595.9,2595.8,67.14771886]
[1749138270207,0.02,2595.9,2595.8,67.65629919]
[1749138270731,0.02,2595.9,2595.8,68.02026227]
[1749138273343,0.02,2595.9,2595.8,59.96226227]
[1749138273524,0.02,2595.9,2595.8,67.65429919]
[1749138274922,0.02,2595.9,2595.8,67.14471886]
[1749138275953,0.02,2595.9,2595.8,55.59703891]
[1749138276155,0.02,2595.9,2595.8,45.96903891]
[1749138276329,0.02,2595.9,2595.8,61.96903891]
[1749138278126,0.02,2595.9,2595.8,61.96803891]
[1749138278340,0.02,2595.9,2595.8,55.59703891]
[1749138278540,0.02,2595.9,2595.8,15.50580991]
[1749138278851,0.02,2595.9,2595.8,9.997]
[1749138279059,0.56042799,2595.9,2595.8,16.368]
[1749138279759,0.56042799,2595.9,2595.8,9.997]
[1749138279954,1.35472799,2595.9,2595.8,16.368]
[1749138280377,1.35472799,2595.9,2595.8,9.997]
[1749138280541,1.35472799,2595.9,2595.8,16.368]
[1749138281425,1.35472799,2595.9,2595.8,9.997]
[1749138281765,1.35472799,2595.9,2595.8,16.369]
[1749138283325,1.35472799,2595.9,2595.8,9.997]
[1749138283723,1.35472799,2595.9,2595.8,8.314]
[1749138283924,1.35472799,2595.9,2595.8,9.995]
[1749138284138,1.35472799,2595.9,2595.8,16.367]
[1749138284700,5.2069565,2595.9,2595.8,16.367]
[1749138285425,5.98040794,2595.9,2595.8,16.367]
[1749138287539,9.83263645,2595.9,2595.8,16.367]
[1749138287735,9.83263645,2595.9,2595.8,9.995]
[1749138287956,0.797,2595.5,2594.8,10.0]
[1749138288123,0.797,2595.2,2594.9,3.85367655]
[1749138288324,0.797,2595.2,2595.0,10.22554994]
[1749138288556,4.62567995,2595.5,2594.5,3.85429491]
[1749138288557,0.797,2595.5,2594.9,3.8536775]
[1749138288763,0.797,2595.5,2595.3,3.85311909]
[1749138288932,0.797,2595.5,2595.2,13.85326757]
[1749138288933,0.797,2595.5,2595.4,10.22497064]
[1749138289139,0.797,2595.5,2595.4,6.372]
[1749138290030,16.0,2595.7,2595.4,6.372]
[1749138290242,16.8033,2595.7,2595.4,6.372]
[1749138290563,19.00224079,2595.7,2595.4,6.372]
[1749138290950,0.7685,2595.5,2594.2,30.0]
[1749138291129,0.7685,2595.5,2594.0,10.51]
[1749138291130,4.62567995,2595.2,2594.4,19.172677]
[1749138291357,4.62567995,2595.2,2594.8,3.8537892]
[1749138291539,4.62567995,2595.2,2594.9,10.22570559]
[1749138291736,4.62567995,2595.4,2595.0,6.372]
[1749138291941,4.62567995,2595.4,2595.0,10.22549233]
[1749138292142,4.62567995,2595.4,2595.0,3.85349233]
[1749138292337,4.62567995,2595.4,2595.1,6.372]
[1749138292865,0.7685,2595.5,2595.1,10.22535451]
[1749138293157,0.7685,2595.5,2595.2,13.85026757]
[1749138293341,0.7685,2595.5,2595.3,8.053]
[1749138293541,0.7685,2595.5,2595.4,6.372]
[1749138294563,5.18610794,2595.9,2595.5,3.8528007]
[1749138294564,0.7664,2595.8,2595.5,3.8528007]
[1749138294775,0.02,2595.9,2595.6,3.85259082]
[1749138294994,0.02,2595.9,2595.6,3.8525415]
[1749138295644,0.02,2595.9,2595.7,3.85250657]
[1749138295965,0.02,2595.9,2595.8,6.372]
[1749138298245,5.18688795,2595.9,2595.8,6.372]
[1749138300544,5.96698795,2595.9,2595.3,1.681]
[1749138300780,4.62567995,2595.6,2595.4,6.371]
[1749138301348,4.62567995,2595.8,2595.4,6.371]
[1749138301782,4.62567995,2595.6,2595.4,6.371]
[1749138302083,0.7843,2595.5,2595.2,8.316]
[1749138302285,4.62567995,2595.4,2595.3,8.052]
[1749138302491,0.7957,2595.2,2595.0,8.316]
[1749138302662,0.7957,2595.2,2595.1,8.052]
[1749138302866,5.42137995,2595.2,2595.1,8.052]
[1749138303193,6.34883694,2595.2,2595.1,8.052]
[1749138304008,6.34883694,2595.2,2595.0,8.316]
[1749138304180,5.55313694,2595.2,2595.1,8.051]
[1749138304498,4.62567995,2595.2,2595.1,8.051]
[1749138304664,5.41997995,2595.2,2595.1,8.051]
[1749138305281,0.7943,2595.2,2595.1,8.051]
[1749138305855,0.8086,2595.5,2595.1,8.051]
[1749138306055,0.8086,2595.5,2595.1,11.90433844]
[1749138306405,0.8086,2595.5,2595.1,11.90438329]
[1749138306960,0.8086,2595.5,2595.3,3.85304474]
[1749138307310,0.8086,2595.5,2595.4,3.85297064]
[1749138307455,0.8086,2595.5,2595.3,3.85304474]
[1749138308990,0.8086,2595.5,2595.4,3.85297064]
[1749138309861,0.8086,2595.5,2595.3,3.85304294]
[1749138310005,0.8086,2595.5,2595.1,8.051]
[1749138310301,0.8086,2595.5,2595.3,3.8531162]
[1749138310476,0.8086,2595.5,2595.2,3.8532366]
[1749138310678,0.8086,2595.5,2595.3,3.85301646]
[1749138311302,0.8086,2595.5,2595.4,3.85297064]
[1749138311674,0.8086,2595.5,2595.3,3.85304483]
[1749138311869,0.7943,2595.8,2595.4,3.85297064]
[1749138312094,0.36881158,2595.7,2595.5,6.37]
[1749138312327,1.89308729,2595.8,2595.5,6.37]
[1749138312487,0.36883191,2595.7,2595.5,10.22278759]
[1749138312684,0.7943,2595.8,2595.5,10.22278759]
[1749138312890,0.7943,2595.8,2595.6,6.37]
[1749138312891,0.36885272,2595.7,2595.6,6.37]
[1749138313091,2.18281921,2595.7,2595.6,8.051]
[1749138313274,5.26604454,2595.7,2595.0,8.316]
[1749138313612,9.63236489,2595.4,2595.1,8.049]
[1749138314109,0.8144,2595.6,2595.1,1.679]
[1749138314295,0.36890491,2595.5,2595.2,6.37]
[1749138314496,0.8144,2595.6,2595.2,10.22325247]
[1749138314698,0.36888804,2595.5,2595.2,10.22325247]
[1749138314903,0.8144,2595.6,2595.2,6.37]
[1749138315087,0.36888806,2595.5,2595.2,6.37]
[1749138315407,0.8144,2595.6,2595.2,6.37]
[1749138315577,0.36887209,2595.5,2595.2,6.37]
[1749138315778,0.8144,2595.6,2595.2,6.37]
[1749138315978,0.36887061,2595.5,2595.2,6.37]
[1749138316303,0.8144,2595.6,2595.2,6.37]
[1749138316526,0.36886563,2595.5,2595.2,6.37]
[1749138316706,0.8144,2595.6,2595.2,6.37]
[1749138317026,0.36886608,2595.5,2595.2,6.37]
[1749138317229,0.8144,2595.6,2595.2,6.37]
[1749138317469,0.36884555,2595.5,2595.2,6.37]
[1749138317600,3.56354314,2595.6,2595.2,6.37]
[1749138317805,0.36885665,2595.5,2595.2,6.37]
[1749138318002,3.56354314,2595.6,2595.2,6.37]
[1749138318253,0.36885095,2595.5,2595.2,6.37]
[1749138318557,9.63236489,2595.5,2595.1,1.679]
[1749138318700,0.36886525,2595.4,2595.0,8.316]
[1749138318900,0.8068,2595.4,2595.1,1.679]
[1749138319135,0.8068,2595.4,2595.2,6.369]
[1749138319443,1.09368709,2595.3,2595.1,1.679]
[1749138319610,14.6411128,2595.2,2595.1,1.679]
[1749138320015,1.15548034,2595.2,2595.1,8.048]
[1749138320198,0.36888034,2595.2,2595.1,8.048]
[1749138320394,0.8171,2595.4,2595.1,8.048]
[1749138320646,0.8171,2595.7,2595.2,3.85320142]
[1749138320802,0.36874596,2595.6,2595.1,11.90133814]
[1749138321145,1.91014789,2595.7,2595.1,11.90133814]
[1749138321345,10.44366489,2595.5,2595.0,8.316]
[1749138321520,14.29704388,2595.2,2595.0,8.316]
[1749138321703,13.48574388,2595.2,2595.1,8.048]
[1749138321906,13.85452463,2595.2,2595.1,8.048]
[1749138322235,14.64352463,2595.2,2595.1,8.048]
[1749138323605,15.19352463,2595.2,2595.1,8.048]
[1749138323815,31.19352463,2595.2,2595.1,1.679]
[1749138324015,33.60530566,2595.2,2595.1,1.679]
[1749138324242,0.8207,2595.0,2594.9,1.679]
[1749138324428,3.85441632,2594.5,2594.4,6.369]
[1749138324738,14.25763976,2594.5,2594.4,6.369]
[1749138324966,3.85446621,2594.4,2593.7,10.0]
[1749138325168,3.85446621,2594.4,2593.8,6.368]
[1749138325169,9.63236489,2594.1,2593.8,6.368]
[1749138325381,9.63236489,2594.1,2593.9,6.368]
[1749138325531,9.63236489,2594.1,2594.0,6.368]
[1749138325734,11.06007373,2594.1,2594.0,6.368]
[1749138325934,11.06007373,2594.1,2593.5,3.8556998]
[1749138325935,0.8007,2594.0,2593.2,3.516259]
[1749138326133,0.8007,2594.0,2593.4,3.85583092]
[1749138326367,0.8007,2594.0,2593.3,10.22509069]
[1749138326368,0.8007,2594.0,2593.3,10.22503626]
[1749138326567,0.8007,2594.0,2593.4,3.8558095]
[1749138326948,0.8007,2594.0,2593.5,6.369]
[1749138327269,9.63236489,2593.8,2593.4,3.85585849]
[1749138327471,2.3722537,2594.0,2593.6,6.369]
[1749138327639,2.3722537,2594.0,2593.7,6.369]
[1749138328566,0.8007,2594.0,2593.7,6.369]
[1749138329968,0.8007,2594.0,2593.3,3.85607285]
[1749138330279,0.8007,2594.0,2593.4,6.37]
[1749138330483,0.8007,2594.0,2593.5,6.37]
[1749138330647,0.8007,2594.0,2593.6,6.37]
[1749138330982,1.42880535,2593.9,2593.6,6.37]
[1749138331181,9.63236489,2593.8,2593.1,0.02]
[1749138331389,9.63236489,2593.8,2593.2,10.22616797]
[1749138331559,9.63236489,2593.8,2593.2,3.85616797]
[1749138331886,0.7663,2593.7,2593.3,6.369]
[1749138332470,9.63236489,2593.5,2593.1,0.02]
[1749138333008,9.63236489,2593.5,2593.2,6.37]
[1749138333319,0.7663,2593.6,2593.3,1.679]
[1749138334704,0.7663,2593.6,2593.3,5.53502498]
[1749138334916,0.7656,2593.8,2593.4,3.85592435]
[1749138335205,3.40539649,2593.8,2593.4,3.855942]
[1749138335727,9.63236489,2594.2,2593.6,3.85556555]
[1749138336019,0.7898,2594.1,2593.7,6.371]
[1749138337066,0.7898,2594.1,2593.7,10.22639626]
[1749138338510,0.7898,2594.1,2593.7,6.371]
[1749138338810,0.7898,2594.1,2593.9,3.85515122]
[1749138338969,1.83201649,2594.1,2594.0,1.68]
[1749138339171,0.8109,2594.2,2594.0,1.68]
[1749138339373,0.8109,2594.2,2594.1,6.37]
[1749138340411,0.794,2594.4,2594.1,6.37]
[1749138340611,0.794,2594.4,2594.1,10.2247996]
[1749138340812,10.42636489,2594.6,2594.2,3.85473987]
[1749138341018,0.794,2594.6,2594.2,3.85473987]
[1749138341185,10.42636489,2594.6,2594.1,6.37]
[1749138341386,11.46900138,2594.6,2594.1,6.37]
[1749138343983,11.46900138,2594.6,2594.2,3.85474792]
[1749138344183,11.46900138,2594.6,2594.1,10.2248428]
[1749138344383,0.794,2594.6,2594.2,3.85464179]
[1749138344584,0.8144,2594.8,2594.3,3.85460374]
[1749138346718,0.8144,2594.8,2594.2,3.85467007]
[1749138347566,0.8144,2594.8,2594.1,10.2248152]
[1749138347764,0.8144,2594.8,2594.2,6.369]
[1749138347969,9.63236489,2594.6,2594.2,6.369]
[1749138348629,4.62171952,2594.5,2593.3,46.0]
[1749138348939,0.7674,2594.5,2593.9,3.85512724]
[1749138349133,0.7674,2594.5,2594.0,11.90101009]
[1749138349376,0.7674,2594.5,2594.1,3.85490044]
[1749138349533,0.7674,2594.5,2594.2,8.046]
[1749138349534,1.95038135,2594.5,2594.2,8.046]
[1749138349729,1.95038135,2594.5,2594.3,1.677]
[1749138351166,1.95038135,2594.5,2594.4,6.368]
[1749138351325,2.31846574,2594.5,2594.4,6.368]
[1749138351748,2.31846574,2594.5,2594.3,1.677]
[1749138351953,1.19508306,2594.4,2594.3,1.677]
[1749138352153,1.19508306,2594.4,2594.3,8.045]
[1749138352528,1.56349419,2594.4,2594.3,8.045]
[1749138352939,1.19508306,2594.4,2594.3,8.045]
[1749138354073,0.8178,2594.8,2594.6,3.85408349]
[1749138354247,10.45016489,2595.1,2594.7,18.54301009]
[1749138354431,0.36845155,2595.0,2594.8,3.8538419]
[1749138354632,10.45016489,2595.1,2594.9,8.045]
[1749138354828,0.36834415,2595.0,2594.9,8.045]
[1749138356888,3.85386156,2594.8,2594.7,8.321]
[1749138357086,15.2181706,2594.8,2594.7,16.365]
[1749138357239,17.21719338,2594.8,2594.7,16.365]
[1749138357862,17.21719338,2594.8,2594.7,9.998]
[1749138358069,17.21719338,2594.8,2594.7,16.365]
[1749138358437,17.21719338,2594.8,2594.7,8.321]
[1749138358637,17.67704597,2594.8,2594.7,9.998]
[1749138359186,17.87765916,2594.8,2594.7,9.998]
[1749138360682,33.41780657,2594.8,2594.7,9.998]
[1749138360852,33.77742318,2594.8,2594.7,9.998]
[1749138361167,33.77746372,2594.8,2594.7,9.998]
[1749138361389,33.77746262,2594.8,2594.7,9.998]
[1749138361591,34.39156484,2594.8,2594.7,9.998]
[1749138362180,34.03194899,2594.8,2594.7,9.998]
[1749138362391,33.66356464,2594.8,2594.7,9.998]
[1749138362540,34.03200967,2594.8,2594.7,9.998]
[1749138362732,34.39175736,2594.8,2594.7,9.998]
[1749138363035,34.03200967,2594.8,2594.7,9.998]
[1749138363351,34.39175655,2594.8,2594.7,9.998]
[1749138363538,33.77765433,2594.8,2594.7,9.998]
[1749138363934,33.41790745,2594.8,2594.7,9.998]
[1749138364173,33.77816851,2594.8,2594.7,9.998]
[1749138364477,33.77816718,2594.8,2594.7,9.998]
[1749138364641,34.03247769,2594.8,2594.7,9.998]
[1749138364973,34.39272742,2594.8,2594.7,9.998]
[1749138365174,34.75297865,2594.8,2594.7,9.998]
[1749138365380,34.03247769,2594.8,2594.7,9.998]
[1749138365550,33.77815845,2594.8,2594.7,9.998]
[1749138365753,34.03264684,2594.8,2594.7,9.998]
[1749138365954,33.41790745,2594.8,2594.7,9.998]
[1749138366361,34.03264915,2594.8,2594.7,9.998]
[1749138366569,34.13840669,2594.8,2594.7,9.998]
[1749138366894,33.41790745,2594.8,2594.7,9.998]
[1749138367185,34.13840053,2594.8,2594.7,9.998]
[1749138367347,33.77815471,2594.8,2594.7,9.998]
[1749138367551,33.41790745,2594.8,2594.7,9.998]
[1749138367945,33.41790745,2594.8,2594.7,8.321]
[1749138368150,33.41836343,2594.8,2594.7,9.999]
[1749138368384,34.13883336,2594.8,2594.7,9.999]
[1749138368584,33.77859823,2594.8,2594.7,9.999]
[1749138368888,33.77859962,2594.8,2594.7,9.999]
[1749138369066,33.41836343,2594.8,2594.7,9.999]
[1749138369263,34.13882962,2594.8,2594.7,9.999]
[1749138369590,33.77859951,2594.8,2594.7,9.999]
[1749138369889,34.33984052,2594.8,2594.7,9.999]
[1749138370456,34.33982425,2594.8,2594.7,9.999]
[1749138370667,33.61936938,2594.8,2594.7,1.678]
[1749138370994,4.67581651,2594.2,2594.0,8.322]
[1749138371190,5.22581651,2594.2,2594.1,8.045]
[1749138371392,5.59468513,2594.2,2594.1,8.045]
[1749138371563,6.58571468,2594.2,2594.1,8.044]
[1749138372198,6.58571468,2594.2,2594.1,1.678]
[1749138372399,16.21807957,2594.2,2594.1,1.678]
[1749138372555,15.39707957,2594.2,2594.1,1.678]
[1749138372759,16.81428495,2594.2,2594.1,1.678]
[1749138373460,3.8549015,2594.1,2594.0,8.322]
[1749138373775,26.39775393,2594.1,2594.0,10.0]
[1749138373989,26.03751322,2594.1,2594.0,10.0]
[1749138374191,26.03751322,2594.1,2594.0,1.678]
[1749138374391,26.03751322,2594.1,2593.1,0.02]
[1749138374392,0.55,2593.4,2593.1,0.02]
[1749138374701,10.18236489,2593.4,2593.2,1.676]
[1749138374867,0.36856305,2593.3,2593.2,1.676]
[1749138375064,0.36856305,2593.3,2593.2,8.042]
[1749138375509,4.77465374,2593.3,2593.2,1.676]
[1749138375718,4.77465374,2593.3,2593.2,8.042]
[1749138376023,0.91856305,2593.3,2593.2,8.042]
[1749138377095,0.91856305,2593.3,2592.6,3.85698546]
[1749138377299,0.36803383,2593.2,2592.5,3.85723561]
[1749138377502,0.36803383,2593.2,2592.4,3.85741858]
[1749138377503,9.63236489,2593.1,2592.4,3.85741858]
[1749138377706,13.48876659,2593.1,2592.2,3.85763728]
[1749138378005,10.42486489,2593.1,2592.4,3.85741886]
[1749138378310,10.42486489,2593.1,2592.5,6.367]
[1749138378517,10.42486489,2593.1,2592.1,0.02]
[1749138378830,9.63236489,2592.5,2592.1,0.02]
[1749138379127,9.63236489,2592.5,2592.2,6.367]
[1749138379273,9.63236489,2592.5,2592.1,0.02]
[1749138379618,9.63236489,2592.5,2592.3,6.367]
[1749138381809,4.40672639,2592.9,2592.3,6.367]
[1749138381810,9.63236489,2592.8,2592.3,6.367]
[1749138382104,10.05907444,2592.8,2592.3,6.367]
[1749138382810,0.8155,2593.2,2592.3,6.367]
[1749138383014,14.30421022,2593.2,2592.4,3.8574294]
[1749138383308,10.44786489,2593.2,2592.5,13.8582803]
[1749138383606,10.44786489,2593.2,2592.7,3.85696749]
[1749138383792,10.44786489,2593.2,2592.8,6.368]
[1749138384199,11.93326089,2593.2,2592.8,6.368]
[1749138384997,9.63236489,2592.9,2592.5,10.001]
[1749138385174,9.63236489,2592.9,2592.5,8.325]
[1749138385373,9.63236489,2592.7,2592.6,8.043]
[1749138385576,10.42036489,2592.7,2592.6,8.043]
[1749138385807,15.31938832,2592.7,2592.5,8.325]
[1749138386009,15.86938832,2592.7,2592.6,8.044]
[1749138386209,12.01240138,2592.7,2592.6,8.044]
[1749138386416,12.01240138,2592.7,2592.6,1.676]
[1749138386713,15.86938444,2592.7,2592.6,8.044]
[1749138387218,3.85713183,2592.6,2592.5,8.325]
[1749138387372,22.98041504,2592.6,2592.5,10.001]
[1749138387576,23.53041504,2592.6,2592.5,10.001]
[1749138388011,4.40772702,2592.2,2592.1,6.387]
[1749138388199,14.04009191,2592.2,2592.1,1.696]
[1749138388517,14.04009191,2592.2,2592.1,0.02]
[1749138388676,15.82986169,2592.2,2592.1,1.696]
[1749138390180,1.78976978,2592.2,2592.1,1.696]
[1749138390383,11.97213467,2592.2,2592.1,1.696]
[1749138390691,15.82986169,2592.2,2592.1,1.696]
[1749138391418,11.97213467,2592.2,2592.1,1.696]
[1749138393821,15.82986169,2592.2,2592.1,1.696]
[1749138394394,11.97213467,2592.2,2592.1,1.696]
[1749138394600,15.82986169,2592.2,2592.1,1.696]
[1749138394827,11.97213467,2592.2,2592.1,1.696]
[1749138395388,19.85750046,2592.4,2592.1,1.696]
[1749138395389,0.55,2592.3,2592.1,1.696]
[1749138395725,0.55,2592.4,2592.1,1.696]
[1749138398807,9.63236489,2592.5,2592.1,1.696]
[1749138401344,0.36772557,2592.4,2592.1,1.696]
[1749138401512,9.63236489,2592.5,2592.1,1.696]
[1749138401843,1.91394293,2592.4,2592.1,1.696]
[1749138402046,1.54621669,2592.4,2592.1,1.696]
[1749138402349,0.36802443,2592.3,2592.1,1.696]
[1749138402520,1.54621669,2592.4,2592.1,1.696]
[1749138402720,0.36802547,2592.3,2592.1,1.696]
[1749138402929,9.63236489,2592.5,2592.1,1.696]
[1749138403139,0.36802416,2592.4,2592.1,1.696]
[1749138403343,0.36802416,2592.3,2592.1,1.696]
[1749138403547,11.13406014,2592.7,2592.2,3.85772702]
[1749138403843,0.36821565,2592.6,2592.3,6.368]
[1749138404058,0.36821565,2592.5,2592.4,3.85740435]
[1749138404218,0.45965876,2592.9,2592.4,3.85740435]
[1749138404422,0.3683549,2592.8,2592.4,3.85732831]
[1749138404667,0.3683549,2592.7,2592.3,10.22549141]
[1749138404960,9.63236489,2593.0,2592.4,3.85737615]
[1749138405287,0.36832874,2592.9,2592.4,3.85737615]
[1749138405451,0.36832874,2592.8,2592.4,3.85737615]
[1749138405654,13.48951763,2592.6,2592.5,1.675]
[1749138405830,14.40784637,2592.6,2592.5,1.675]
[1749138406162,16.81577701,2592.6,2592.5,1.675]
[1749138407145,16.817212,2592.6,2592.5,1.675]
[1749138408671,12.96005926,2592.6,2592.5,1.675]
[1749138409455,16.81719109,2592.6,2592.5,1.675]
[1749138410332,12.96005926,2592.6,2592.5,1.675]
[1749138410532,16.81719109,2592.6,2592.5,1.675]
[1749138411372,16.35640082,2592.6,2592.5,1.675]
[1749138411869,12.49926899,2592.6,2592.5,1.675]
[1749138412270,2.8669041,2592.6,2592.5,1.675]
[1749138412473,0.36863222,2592.6,2592.5,1.675]
[1749138413174,0.2004217,2593.0,2592.5,5.53228061]
[1749138413341,0.36879354,2592.9,2592.5,5.53228061]
[1749138413536,0.36879354,2592.8,2592.6,3.85706806]
[1749138413742,0.46110708,2593.2,2592.6,3.85706806]
[1749138414036,0.36878166,2593.1,2592.6,3.85706806]
[1749138414240,0.36878166,2593.0,2592.5,5.53221797]
[1749138414577,0.36878166,2592.9,2592.5,5.53221797]
[1749138414782,0.36878166,2592.8,2592.5,5.53221797]
[1749138414939,0.46110708,2593.2,2592.5,5.53221797]
[1749138415272,0.36876288,2593.1,2592.5,5.53221797]
[1749138415444,0.36876288,2593.0,2592.6,6.367]
[1749138415773,0.36876288,2592.9,2592.6,6.367]
[1749138415977,14.15065381,2593.3,2592.6,6.367]
[1749138416281,2.1693947,2593.2,2592.6,6.367]
[1749138416482,0.36872893,2593.1,2592.6,6.367]
[1749138416676,1.80066577,2593.2,2592.6,6.367]
[1749138416677,0.36872893,2593.0,2592.6,6.367]
[1749138416983,1.80066577,2593.2,2592.6,10.22412668]
[1749138417142,0.36864818,2593.1,2592.6,10.22412668]
[1749138417474,0.36864818,2593.0,2592.6,10.22399934]
[1749138417638,9.63236489,2593.3,2592.6,10.22399934]
[1749138417840,4.22481754,2593.2,2592.6,6.367]
[1749138418039,0.36855413,2593.1,2592.6,6.367]
[1749138418275,10.00091902,2593.0,2592.6,6.367]